bitfinex/quotes_ETHUSD_20250430
["timestamp","ask_amount","ask_price","bid_price","bid_amount"]
[1746021611449,6.035,1745.7,1744.6,8.94491051]
[1746021611735,0.95524543,1745.6,1744.3,8.94491051]
[1746021611948,0.55,1745.7,1743.9,8.94491051]
[1746021612099,19.91624543,1745.6,1743.9,8.94491051]
[1746021612299,0.55,1745.5,1743.9,8.94491051]
[1746021612511,0.55,1745.5,1743.0,0.05734313]
[1746021612837,0.55,1745.5,1742.6,19.161]
[1746021612838,0.31224295,1745.6,1744.7,8.94491051]
[1746021613007,0.31224295,1745.6,1744.3,8.94491051]
[1746021613221,3.0,1745.3,1744.3,8.94491051]
[1746021613426,9.035,1745.3,1744.3,5.43814692]
[1746021613610,0.31224295,1745.5,1744.3,5.43814692]
[1746021613810,0.31224295,1745.4,1744.3,5.43814692]
[1746021614025,6.34724295,1745.4,1744.1,8.94491051]
[1746021614241,6.035,1745.2,1744.1,8.94491051]
[1746021614422,0.31224295,1745.1,1744.1,8.94491051]
[1746021614622,0.31224295,1745.1,1742.7,1.9161]
[1746021614623,19.512,1745.0,1743.3,8.94491051]
[1746021614847,9.035,1744.8,1743.3,8.94491051]
[1746021615154,0.55,1744.5,1742.5,8.94491051]
[1746021615456,9.585,1744.2,1741.2,11.49449036]
[1746021615758,9.585,1743.9,1741.7,8.94491051]
[1746021615941,9.585,1743.7,1741.8,0.89449105]
[1746021616464,0.31224295,1743.6,1742.5,8.94491051]
[1746021616614,0.31224295,1743.6,1741.9,0.88762889]
[1746021616615,0.31224295,1743.6,1742.9,8.94491051]
[1746021616957,0.31224295,1743.6,1742.3,0.55]
[1746021616958,0.31224295,1743.6,1743.3,8.94491051]
[1746021617138,0.31224295,1743.6,1742.8,8.94491051]
[1746021617323,0.31224295,1743.5,1743.3,8.94491051]
[1746021617524,18.965,1745.2,1743.4,9.00227154]
[1746021617842,13.22986192,1744.1,1743.6,8.94491051]
[1746021618013,13.22986192,1744.1,1744.0,8.94491051]
[1746021618418,8.19361814,1744.3,1744.0,8.94491051]
[1746021618614,9.35595198,1744.5,1744.2,8.94491051]
[1746021619026,9.35595198,1744.5,1742.8,0.2]
[1746021619231,9.35595198,1744.5,1744.4,8.94491051]
[1746021619431,9.35595198,1744.5,1744.1,8.94491051]
[1746021619658,9.35595198,1744.5,1743.5,0.05733286]
[1746021619659,9.35595198,1744.5,1743.5,8.94491051]
[1746021619874,9.35595198,1744.5,1743.9,8.94491051]
[1746021620159,8.13755198,1744.5,1743.7,8.94491051]
[1746021620360,0.55,1744.3,1742.5,0.0573537]
[1746021620572,8.13755198,1744.5,1742.8,8.94491051]
[1746021620784,3.55,1744.4,1742.8,8.94491051]
[1746021620929,3.55,1744.4,1741.8,0.05738059]
[1746021621130,3.55,1744.4,1742.6,8.94491051]
[1746021621455,0.55,1744.0,1741.6,0.46661608]
[1746021621667,0.55,1743.8,1742.0,8.94491051]
[1746021621968,0.55,1743.4,1742.0,8.94491051]
[1746021622153,9.585,1743.2,1741.6,0.4092302]
[1746021622733,9.585,1743.2,1741.7,8.94491051]
[1746021623671,18.974,1743.3,1742.4,8.94491051]
[1746021623839,25.009,1743.3,1741.6,0.4092302]
[1746021624046,6.035,1742.7,1741.6,0.4092302]
[1746021624243,3.0,1743.2,1741.6,0.4092302]
[1746021624459,6.585,1742.9,1741.6,0.4092302]
[1746021624628,6.035,1742.7,1741.6,0.4092302]
[1746021624965,0.55,1742.2,1741.6,0.4092302]
[1746021625164,0.55,1741.9,1741.6,0.4092302]
[1746021625367,0.55,1741.6,1741.2,6.4330347]
[1746021625570,0.55,1741.4,1740.0,0.25]
[1746021625867,3.0,1741.4,1739.7,8.94491051]
[1746021626033,18.981,1741.8,1740.1,8.94491051]
[1746021626230,3.0,1741.7,1740.2,8.94491051]
[1746021626555,0.43934824,1742.2,1740.6,8.94491051]
[1746021626754,18.981,1742.2,1739.8,0.89449105]
[1746021626962,18.981,1742.2,1739.9,0.0574552]
[1746021627284,18.981,1742.2,1737.7,11.79798507]
[1746021627285,21.991,1742.1,1739.3,2.87395786]
[1746021627463,21.991,1742.1,1740.5,8.94491051]
[1746021627629,21.991,1742.1,1739.9,2.85657654]
[1746021627630,18.991,1742.1,1739.9,2.85657654]
[1746021627971,9.035,1742.0,1739.8,0.51854]
[1746021628157,9.035,1742.0,1739.9,2.85657654]
[1746021628359,9.035,1742.0,1739.8,0.51854]
[1746021628583,2.82313928,1741.5,1739.9,2.85657654]
[1746021628766,6.035,1740.6,1738.5,0.05750122]
[1746021628949,6.035,1740.6,1738.0,11.79161052]
[1746021628950,6.035,1740.2,1738.0,11.79161052]
[1746021629253,0.42602536,1740.2,1738.4,12.94587276]
[1746021629471,2.84713598,1740.1,1738.4,11.76897524]
[1746021629674,18.991,1740.0,1738.4,10.15156213]
[1746021629969,1.46272648,1740.0,1738.4,10.15156213]
[1746021630190,3.0,1740.4,1738.4,10.15156213]
[1746021630362,3.95892632,1740.4,1738.4,10.17159944]
[1746021630671,3.95892632,1740.4,1738.5,2.80980744]
[1746021630672,3.68058917,1740.3,1738.5,2.80980744]
[1746021630840,0.95892632,1740.2,1738.5,2.80980744]
[1746021631371,0.95892632,1740.2,1738.5,2.84262164]
[1746021631915,22.003,1740.3,1738.5,2.84262164]
[1746021632061,19.003,1740.3,1738.5,2.84262164]
[1746021632432,19.003,1740.3,1738.4,10.13878524]
[1746021632433,3.0,1740.2,1738.4,7.26399099]
[1746021632637,5.84855622,1739.6,1738.5,2.80980744]
[1746021632837,5.84855622,1739.6,1736.0,10.16662486]
[1746021632838,3.0,1739.4,1736.0,10.16662486]
[1746021633082,3.0,1739.1,1736.1,0.05756916]
[1746021633237,0.2,1741.5,1737.6,0.2]
[1746021633440,19.011,1741.3,1738.4,11.37648782]
[1746021633682,19.011,1741.3,1741.0,0.5623]
[1746021634174,0.4202714,1741.4,1741.0,0.5623]
[1746021634541,0.4202714,1741.4,1741.1,2.05]
[1746021634770,0.4202714,1741.4,1741.1,2.20513774]
[1746021635072,0.4202714,1741.4,1741.1,0.15513774]
[1746021635371,0.36097953,1741.4,1741.1,0.15513774]
[1746021636865,0.36097953,1741.4,1741.0,0.5623]
[1746021637234,0.36097953,1741.4,1741.1,0.15513774]
[1746021637438,0.36097953,1741.4,1741.2,0.1422096]
[1746021637638,0.36097953,1741.4,1740.5,0.55]
[1746021637639,0.36097953,1741.4,1740.6,0.05743024]
[1746021637879,0.36097953,1741.4,1740.7,0.1422096]
[1746021638046,0.36097953,1741.4,1740.5,11.37648782]
[1746021638245,0.36097953,1741.4,1740.6,0.1422096]
[1746021638481,0.36097953,1741.4,1740.7,0.05743897]
[1746021638682,0.36097953,1741.4,1740.8,0.05742722]
[1746021638979,4.82357176,1741.6,1740.9,0.1422096]
[1746021639176,4.82357176,1741.6,1740.9,0.19962405]
[1746021639538,4.82357176,1741.6,1741.0,0.55]
[1746021639861,4.82357176,1741.6,1741.1,0.12414027]
[1746021640079,4.58187176,1741.6,1741.1,0.1815627]
[1746021640273,19.011,1742.3,1741.1,0.12414027]
[1746021640452,19.011,1742.3,1740.7,0.05741945]
[1746021640453,19.011,1742.3,1741.0,0.05742045]
[1746021640657,3.0,1742.2,1740.6,0.60742239]
[1746021640870,3.0,1742.2,1740.6,11.43391021]
[1746021641053,3.0,1742.2,1740.1,11.37648782]
[1746021641257,0.55,1742.1,1740.2,0.05743557]
[1746021641473,3.0,1742.2,1740.2,0.05743888]
[1746021641665,3.0,1742.2,1740.2,3.05743888]
[1746021641866,18.647,1742.3,1740.8,0.55]
[1746021642072,18.647,1742.3,1740.8,0.60741987]
[1746021642275,18.647,1742.3,1741.2,3.55]
[1746021642495,3.82493402,1744.3,1743.2,2.1449]
[1746021642696,18.9408,1743.5,1741.8,0.05737298]
[1746021642996,18.9408,1743.5,1740.0,2.87492207]
[1746021642997,11.37648782,1743.2,1739.8,11.37648782]
[1746021643202,11.37648782,1743.2,1739.9,0.05743925]
[1746021643203,5.74242696,1741.5,1739.9,0.05743925]
[1746021643400,10.612,1741.4,1740.3,11.37648782]
[1746021643571,5.74130987,1741.8,1740.4,3.0574223]
[1746021643769,5.74052812,1742.0,1740.4,0.0574223]
[1746021644078,5.74052812,1742.0,1740.3,3.0]
[1746021644079,5.74052812,1742.0,1740.3,3.05743348]
[1746021644280,5.74143986,1741.8,1740.2,11.37648782]
[1746021644479,5.74184657,1741.6,1740.2,11.37648782]
[1746021644679,0.05743348,1741.5,1740.3,0.05744112]
[1746021645500,0.05743348,1741.8,1740.7,11.37648782]
[1746021645697,10.612,1742.6,1741.2,11.37648782]
[1746021645897,0.05743348,1742.8,1741.3,10.66940237]
[1746021646068,5.73502176,1743.7,1741.6,0.2]
[1746021646400,29.619,1743.8,1742.2,3.55]
[1746021646703,29.619,1743.8,1742.5,11.37648782]
[1746021646865,29.619,1743.8,1742.6,0.02858826]
[1746021647060,0.07168997,1743.7,1742.6,0.02858826]
[1746021647288,0.07168997,1743.7,1741.4,10.612]
[1746021647289,5.73526038,1743.6,1741.8,11.37648782]
[1746021647497,5.73624734,1743.3,1741.9,0.02864681]
[1746021647768,8.0,1742.6,1741.9,0.02864681]
[1746021648576,8.0,1742.5,1741.8,11.37648782]
[1746021648969,8.0,1742.5,1741.9,0.02867514]
[1746021649206,8.0,1742.5,1741.8,0.55]
[1746021649502,8.0,1742.5,1741.7,0.02867264]
[1746021649722,5.73855324,1742.6,1741.1,11.37648782]
[1746021649723,8.0,1742.2,1741.1,11.37648782]
[1746021649903,8.0,1742.2,1741.2,3.02871496]
[1746021650208,8.0,1742.2,1741.7,3.0]
[1746021650417,6.3334,1742.2,1741.8,0.57867835]
[1746021650570,4.6668,1742.2,1741.8,0.57867835]
[1746021650782,0.01347301,1742.8,1741.8,0.57867835]
[1746021650783,8.0,1742.7,1741.8,0.55]
[1746021650988,8.0,1742.7,1741.9,0.02865817]
[1746021651186,8.0,1742.7,1741.9,0.02866185]
[1746021651490,8.0,1742.2,1741.7,0.02867804]
[1746021651714,8.0,1742.2,1741.6,11.37648782]
[1746021652027,8.0,1742.2,1741.7,0.57869064]
[1746021652325,8.0,1742.2,1741.8,11.37648782]
[1746021652621,0.01347301,1742.8,1741.8,11.37648782]
[1746021652622,8.0,1742.4,1741.8,11.37648782]
[1746021652820,8.0,1742.4,1741.9,3.57867119]
[1746021652821,6.9403,1742.4,1741.9,3.57867119]
[1746021653018,0.01347301,1742.8,1742.3,11.37648782]
[1746021653183,0.01347301,1742.8,1742.5,0.55]
[1746021653395,0.01347301,1742.8,1742.6,0.02860293]
[1746021653738,8.0,1743.3,1742.7,8.99766232]
[1746021654033,8.0,1743.3,1743.1,8.99766232]
[1746021654228,7.7064,1743.3,1743.1,8.99766232]
[1746021654399,7.7064,1743.3,1743.2,8.99766232]
[1746021654594,8.0,1743.4,1743.2,8.99766232]
[1746021655108,5.73167002,1744.7,1743.2,8.99766232]
[1746021655313,5.73167002,1744.7,1743.3,0.02854609]
[1746021655314,3.6212786,1744.4,1743.3,0.02854609]
[1746021655501,3.6212786,1744.4,1743.8,8.99766232]
[1746021655697,16.33524689,1744.9,1743.8,8.99766232]
[1746021655698,6.88042934,1745.4,1743.8,8.99766232]
[1746021655996,0.96736811,1745.5,1745.3,8.99766232]
[1746021656200,9.00912037,1745.9,1745.3,8.99766232]
[1746021656395,9.00912037,1745.9,1745.8,8.99766232]
[1746021656596,11.58213585,1746.1,1745.8,8.99766232]
[1746021656796,5.91563585,1746.1,1745.8,8.99766232]
[1746021656997,4.49210085,1747.4,1746.4,0.2]
[1746021657318,4.49210085,1747.4,1746.5,0.04277228]
[1746021657501,0.30574389,1747.3,1746.5,0.04277228]
[1746021657836,0.30574389,1747.3,1746.4,3.0]
[1746021657837,4.49210085,1747.4,1746.4,2.55721839]
[1746021658125,4.49210085,1747.4,1746.5,0.04270121]
[1746021658362,11.351,1748.1,1746.6,0.2]
[1746021658499,11.351,1748.1,1746.7,0.0426544]
[1746021659158,11.351,1748.6,1747.0,0.2]
[1746021659305,11.351,1748.9,1747.1,11.3936077]
[1746021659646,11.38467906,1749.0,1747.1,11.351]
[1746021659939,5.70839755,1751.9,1749.2,0.2]
[1746021660139,11.654,1751.1,1749.3,1.2646776]
[1746021660350,11.654,1751.1,1749.3,5.52624536]
[1746021660508,11.654,1751.1,1749.3,4.3040111]
[1746021660837,11.21575652,1750.0,1749.3,4.3040111]
[1746021661026,11.21575652,1750.0,1749.3,0.04244334]
[1746021661339,11.21575652,1750.0,1749.1,3.0]
[1746021661560,11.21575652,1750.0,1749.2,0.0424867]
[1746021662082,11.654,1750.9,1749.2,0.2424867]
[1746021662247,11.654,1750.9,1749.3,0.2]
[1746021662543,11.654,1750.9,1749.4,0.04243164]
[1746021662914,11.654,1750.9,1749.3,0.2]
[1746021663140,11.654,1750.9,1749.5,0.04243164]
[1746021663439,18.964,1751.2,1749.5,3.04243164]
[1746021663605,18.964,1751.2,1749.6,0.30424316]
[1746021663800,18.964,1751.2,1749.7,0.0424023]
[1746021664328,11.642,1751.1,1749.7,0.0424023]
[1746021665035,11.642,1751.1,1749.8,0.04243883]
[1746021665337,11.642,1751.1,1749.5,3.0]
[1746021665640,11.642,1751.1,1749.6,0.04241864]
[1746021665866,11.642,1751.1,1749.6,0.3466605]
[1746021667329,11.642,1751.1,1749.6,0.5466605]
[1746021667528,18.964,1751.2,1749.7,0.2]
[1746021667841,5.70648852,1752.4,1749.8,0.24240808]
[1746021668026,11.633,1752.0,1750.3,0.2]
[1746021668208,5.70808836,1751.9,1750.4,0.24233139]
[1746021668407,11.633,1752.0,1750.5,1.1678]
[1746021668739,5.70898448,1751.7,1750.6,0.04235032]
[1746021668938,11.633,1752.0,1750.6,0.04235032]
[1746021669105,11.633,1752.0,1750.7,1.1678]
[1746021669306,18.93,1752.2,1750.9,1.1678]
[1746021669550,0.6751563,1752.9,1751.1,1.1678]
[1746021669767,0.6751563,1752.9,1751.4,1.3678]
[1746021670070,0.6751563,1752.9,1751.9,0.2]
[1746021670283,0.6751563,1752.9,1752.1,1.1678]
[1746021670436,0.6751563,1752.9,1752.3,0.55]
[1746021670784,0.6751563,1752.9,1752.4,0.04221101]
[1746021671490,0.07127765,1754.2,1752.4,0.04221101]
[1746021671491,4.8559,1758.3,1752.4,0.04221101]
[1746021671637,5.70027931,1754.3,1752.4,0.04221101]
[1746021671832,11.626,1754.5,1752.4,0.04221101]
[1746021672032,5.6999544,1754.4,1752.4,0.04221101]
[1746021672389,0.07126712,1754.3,1752.4,0.04221101]
[1746021672670,5.77163841,1754.3,1752.5,0.4927]
[1746021672991,11.626,1754.5,1752.6,0.04220787]
[1746021672992,5.7013516,1754.0,1752.6,0.04220787]
[1746021673148,5.70157933,1753.9,1752.6,0.04220787]
[1746021673475,5.70373074,1753.3,1752.6,0.04220787]
[1746021673660,5.70190443,1753.8,1752.6,0.04220787]
[1746021673976,5.70180368,1753.9,1752.7,0.04222039]
[1746021674130,5.70353048,1753.3,1752.7,0.04222039]
[1746021674332,5.70711106,1752.2,1752.1,0.4929]
[1746021674586,5.70711106,1752.2,1751.6,0.4929]
[1746021674766,5.70874008,1751.7,1751.6,0.4929]
[1746021674949,5.70808836,1751.9,1751.2,0.04234535]
[1746021675150,11.617,1752.5,1751.2,0.04234425]
[1746021675151,5.70921301,1751.6,1751.2,0.04234425]
[1746021675351,5.70667301,1752.4,1751.1,0.4929]
[1746021675352,5.70743679,1752.1,1751.1,0.4929]
[1746021675675,5.70743679,1752.1,1751.2,0.0423373]
[1746021675876,11.617,1752.5,1751.2,0.0423373]
[1746021676091,7.35469943,1752.9,1751.2,0.0423373]
[1746021676092,5.70483199,1752.9,1751.3,0.4929]
[1746021676287,0.55,1753.0,1751.5,0.4929]
[1746021676440,5.70529072,1752.8,1751.6,0.5922613]
[1746021676640,5.70450656,1753.0,1751.6,0.0422613]
[1746021676860,11.612,1753.1,1751.6,0.5922613]
[1746021677178,11.612,1753.1,1751.8,0.4929]
[1746021677709,5.70602942,1752.6,1751.9,0.04224812]
[1746021678007,5.70481977,1753.0,1751.9,0.04224812]
[1746021678173,18.896,1753.3,1751.9,3.04224812]
[1746021678376,11.608,1753.6,1752.1,0.4929]
[1746021678622,5.70403175,1753.2,1752.2,0.04221889]
[1746021678772,11.608,1753.6,1752.4,0.4929]
[1746021678977,17.31069475,1753.6,1752.5,0.04221192]
[1746021679176,11.608,1753.6,1752.5,0.59221192]
[1746021679388,5.70426888,1753.1,1752.4,0.4929]
[1746021679678,5.70303911,1753.5,1752.5,0.04219687]
[1746021679991,11.608,1753.6,1752.5,0.04219687]
[1746021680198,18.89,1754.0,1752.7,0.55]
[1746021680372,5.70127599,1754.0,1752.9,0.55]
[1746021680573,5.70092925,1754.1,1753.0,0.04216438]
[1746021680927,11.608,1754.2,1753.0,0.04216438]
[1746021680928,5.70138074,1754.0,1753.0,0.04216438]
[1746021681069,11.608,1754.2,1753.0,0.04216438]
[1746021681271,5.70157476,1754.0,1753.0,0.04216438]
[1746021684023,5.69962952,1754.5,1753.2,0.04213515]
[1746021684224,5.70175287,1753.9,1753.2,0.04213515]
[1746021684369,5.70188409,1753.9,1753.2,0.04213515]
[1746021684571,0.55,1754.5,1753.2,0.04213515]
[1746021684876,5.7004455,1754.3,1753.2,0.04213515]
[1746021685076,5.69880825,1754.8,1753.3,0.4929]
[1746021685077,5.69930468,1754.6,1753.3,0.4929]
[1746021685397,5.70089334,1754.2,1753.4,0.04212904]
[1746021685704,5.70082463,1754.2,1753.4,0.04212904]
[1746021685904,5.70127824,1754.0,1753.4,0.04212904]
[1746021686092,3.55,1754.6,1753.4,0.04212904]
[1746021686273,5.70027931,1754.3,1753.4,0.04214744]
[1746021686473,0.55,1754.4,1753.4,0.04216945]
[1746021686670,5.70075727,1754.2,1753.4,0.04216945]
[1746021686871,5.69833038,1754.9,1753.4,0.04216945]
[1746021687074,5.69865511,1754.8,1753.4,0.04216945]
[1746021687307,5.69975856,1754.5,1753.4,3.04216945]
[1746021687481,11.598,1755.0,1753.5,0.4929]
[1746021687807,5.69849483,1754.9,1753.6,0.04210518]
[1746021687992,5.69789079,1755.1,1753.8,0.4929]
[1746021688205,0.4670297,1755.2,1754.0,0.4929]
[1746021688379,0.4670297,1755.2,1754.2,3.4929]
[1746021688708,0.4670297,1755.2,1754.4,3.0]
[1746021688908,5.69821296,1755.0,1754.5,0.04206057]
[1746021689122,6.16448756,1755.2,1754.3,3.0]
[1746021689323,0.4670297,1755.2,1754.4,0.04208578]
[1746021689621,0.4670297,1755.2,1754.2,0.4929]
[1746021689622,0.4670297,1755.2,1754.5,0.04208662]
[1746021689834,5.69930468,1754.6,1754.2,0.4929]
[1746021689978,0.55,1754.7,1753.8,0.4929]
[1746021690171,0.55,1754.7,1753.2,11.308]
[1746021690172,5.70184225,1753.9,1753.3,0.4929]
[1746021690521,5.7025264,1753.7,1753.3,0.4929]
[1746021690726,5.70060426,1754.2,1753.3,0.4929]
[1746021691016,0.0712711,1754.2,1753.3,0.4929]
[1746021691183,5.70143613,1754.0,1753.3,0.4929]
[1746021691518,5.70079356,1754.2,1753.3,0.4929]
[1746021691702,5.70244319,1753.7,1753.3,0.4929]
[1746021691876,0.55,1753.9,1753.3,0.4929]
[1746021692076,5.70411196,1753.2,1752.9,0.4929]
[1746021692276,11.304,1753.8,1752.9,0.4929]
[1746021692504,7.34499672,1754.2,1752.9,0.4929]
[1746021692505,18.64895631,1754.2,1752.9,0.4929]
[1746021692709,11.304,1754.2,1752.9,0.4929]
[1746021692878,5.70106122,1754.1,1752.9,0.4929]
[1746021693074,5.70187161,1753.9,1752.9,0.4929]
[1746021693302,0.55,1754.2,1752.9,0.4929]
[1746021693575,0.55,1754.0,1752.9,0.4929]
[1746021693821,5.70372463,1753.3,1752.9,0.4929]
[1746021694113,5.70418116,1753.1,1752.4,0.4929]
[1746021694424,0.55,1753.3,1752.4,0.4929]
[1746021694425,0.55,1753.0,1752.4,0.4929]
[1746021694572,5.70418116,1753.1,1752.4,0.4929]
[1746021694776,5.70569232,1752.7,1752.4,0.4929]
[1746021695020,0.55,1752.8,1752.4,0.4929]
[1746021695176,0.55,1752.7,1751.9,0.4929]
[1746021695376,5.70645304,1752.5,1751.9,0.4929]
[1746021695594,0.55,1752.6,1751.9,0.4929]
[1746021695796,6.25704867,1752.3,1751.9,0.4929]
[1746021696045,5.7066312,1752.4,1751.2,0.4929]
[1746021696194,0.55,1752.4,1751.2,0.4929]
[1746021696393,0.55,1752.6,1751.2,0.4929]
[1746021696590,5.70756281,1752.1,1751.2,0.4929]
[1746021696844,5.7079463,1752.0,1751.2,0.4929]
[1746021697341,0.55,1752.3,1751.2,0.4929]
[1746021697491,6.2569504,1752.3,1751.2,0.4929]
[1746021697692,11.307,1752.4,1751.3,0.55]
[1746021697897,35.8799208,1752.9,1751.4,0.4929]
[1746021698120,30.175,1752.9,1751.4,0.4929]
[1746021698635,0.55,1752.8,1751.4,0.4929]
[1746021698797,1.5051,1753.3,1751.6,0.4929]
[1746021699144,5.70452974,1753.0,1751.8,0.4929]
[1746021699306,0.55,1753.1,1751.8,0.4929]
[1746021699652,7.78584817,1754.3,1752.1,0.55]
[1746021699795,18.874,1754.0,1752.1,0.4929]
[1746021699995,5.70496664,1752.9,1752.1,0.4929]
[1746021700195,0.55,1752.6,1752.1,0.4929]
[1746021700392,0.55,1752.8,1752.1,0.4929]
[1746021700808,5.70562489,1752.7,1752.1,0.4929]
[1746021701028,16.73146887,1753.1,1752.1,0.4929]
[1746021701029,16.73132442,1753.1,1752.1,0.4929]
[1746021701227,1.5199,1753.6,1752.1,0.4929]
[1746021701398,0.31115529,1753.5,1752.3,0.4929]
[1746021702130,0.31115529,1753.5,1752.4,0.4929]
[1746021702333,0.31115529,1753.4,1752.6,0.4929]
[1746021702637,0.31115529,1753.4,1752.9,0.4929]
[1746021702840,11.027,1754.4,1753.0,3.55]
[1746021703141,5.70053012,1754.3,1753.1,0.355]
[1746021703293,11.027,1754.4,1753.1,0.355]
[1746021703500,11.027,1754.4,1753.0,3.55]
[1746021703501,5.70124054,1754.1,1753.0,3.0]
[1746021703701,5.70139444,1754.0,1753.0,3.0]
[1746021703902,5.70113431,1754.1,1753.1,0.1818]
[1746021704110,5.70027931,1754.3,1753.1,0.1818]
[1746021704450,5.70028501,1754.3,1753.1,0.1818]
[1746021704606,16.727159,1754.4,1753.1,0.1818]
[1746021704607,16.72717822,1754.4,1753.1,0.1818]
[1746021704948,16.72717822,1754.4,1753.2,0.1819]
[1746021704949,11.027,1754.4,1753.2,0.1819]
[1746021705249,19.3410297,1755.2,1753.2,0.1819]
[1746021705413,5.69918329,1754.7,1753.2,0.1819]
[1746021705613,16.72533162,1754.9,1753.2,0.1819]
[1746021705814,5.69963539,1754.5,1753.2,0.1819]
[1746021706015,5.69948632,1754.6,1753.2,0.1819]
[1746021706215,5.69880503,1754.8,1753.2,0.1819]
[1746021706415,16.72534204,1754.9,1753.6,0.1819]
[1746021706730,11.027,1754.9,1753.6,0.1819]
[1746021706943,11.027,1754.9,1753.9,0.55]
[1746021707150,11.027,1754.9,1754.0,0.1819]
[1746021707303,16.72550635,1754.9,1754.0,0.1819]
[1746021707506,0.55,1754.6,1754.0,0.1819]
[1746021707738,11.027,1754.9,1754.0,0.1819]
[1746021708263,16.7253317,1754.9,1754.0,0.1819]
[1746021708413,16.72539697,1754.9,1754.0,0.1819]
[1746021708606,11.027,1754.9,1754.0,0.1819]
[1746021709109,5.6980459,1755.0,1754.0,0.1819]
[1746021709316,6.24783264,1755.1,1754.0,0.1819]
[1746021709616,5.69890747,1754.8,1754.0,0.1819]
[1746021709823,5.6984461,1754.9,1754.0,0.1819]
[1746021710020,19.3410297,1755.2,1754.0,0.1819]
[1746021711049,19.3410297,1755.2,1754.3,0.55]
[1746021711253,0.4670297,1755.2,1754.4,0.1819]
[1746021711459,0.4670297,1755.2,1754.6,0.1819]
[1746021711626,0.4670297,1755.2,1754.7,0.55]
[1746021711833,0.4670297,1755.2,1754.5,0.1819]
[1746021712466,0.4670297,1755.2,1754.5,0.61034039]
[1746021712634,0.4670297,1755.2,1754.6,0.1819]
[1746021713045,5.69216757,1756.8,1754.9,0.55]
[1746021713354,7.20748399,1756.9,1754.9,0.55]
[1746021713355,5.69176088,1757.0,1755.0,0.9935676]
[1746021713575,5.69169025,1757.0,1755.2,3.0]
[1746021713868,3.0,1757.2,1755.3,0.55]
[1746021714066,0.071148,1757.2,1755.3,0.55]
[1746021714267,5.69151963,1757.0,1755.3,4.678]
[1746021714484,5.69331742,1756.5,1755.3,4.678]
[1746021714682,5.69375323,1756.4,1755.3,5.10434041]
[1746021714966,5.69216757,1756.8,1755.3,5.10434041]
[1746021715265,5.69154376,1757.0,1755.3,5.10434041]
[1746021715427,5.69268954,1756.7,1755.4,0.51043404]
[1746021715631,11.38546592,1756.7,1755.4,0.51043404]
[1746021715869,5.69315454,1756.5,1755.5,0.55]
[1746021716226,5.69332429,1756.5,1755.4,0.55]
[1746021716459,5.69231894,1756.8,1755.4,0.55]
[1746021716662,5.69087184,1757.2,1755.4,1.06043404]
[1746021716850,5.69172144,1757.0,1755.4,1.06043404]
[1746021717060,5.69167401,1757.0,1755.4,1.06043404]
[1746021717232,5.69166415,1757.0,1755.4,1.06043404]
[1746021717432,5.69102336,1757.2,1755.4,1.06043404]
[1746021717629,5.69229424,1756.8,1755.4,1.06043404]
[1746021717859,5.69220176,1756.8,1755.4,1.06043404]
[1746021718057,5.69204397,1756.9,1755.4,0.51043404]
[1746021718257,10.723,1757.7,1755.4,3.08647225]
[1746021718458,3.0,1757.5,1755.5,3.0]
[1746021718661,5.69112854,1757.2,1755.6,0.3]
[1746021718859,16.41244554,1757.7,1755.6,1.25273426]
[1746021718860,10.723,1757.7,1755.6,1.25273426]
[1746021719069,10.723,1757.7,1756.0,3.0]
[1746021719238,5.99795961,1757.6,1756.2,3.0]
[1746021719434,0.30821112,1757.6,1756.2,3.0]
[1746021719672,5.69007541,1757.5,1756.2,3.0]
[1746021719844,5.69007541,1757.5,1756.3,0.3]
[1746021720044,5.68971327,1757.6,1756.4,0.55]
[1746021720275,5.69101635,1757.2,1756.3,0.72676451]
[1746021720481,5.69069036,1757.3,1756.3,0.72676451]
[1746021720666,5.69035293,1757.4,1756.4,0.55]
[1746021720864,0.55,1757.5,1756.2,3.0]
[1746021721180,5.69102508,1757.2,1756.2,3.0]
[1746021721341,5.69065718,1757.3,1756.2,3.0]
[1746021721342,5.69074881,1757.3,1756.2,3.0]
[1746021721542,5.69110232,1757.2,1756.2,3.0]
[1746021721737,5.690389,1757.4,1756.2,3.0]
[1746021722037,5.68980954,1757.6,1756.3,1.80273426]
[1746021722386,5.68861721,1757.9,1756.2,0.43361535]
[1746021722387,5.69136708,1757.1,1756.2,0.43361535]
[1746021722535,3.55,1757.9,1756.0,29.567]
[1746021722536,0.55,1757.2,1756.0,29.567]
[1746021722736,5.69240776,1756.8,1756.0,29.567]
[1746021722938,5.69192993,1756.9,1756.0,29.567]
[1746021723182,0.55,1757.2,1756.1,3.0]
[1746021723339,5.69219547,1756.8,1756.0,30.00078662]
[1746021723540,0.55,1756.7,1756.0,0.43378662]
[1746021723795,5.69438011,1756.2,1755.5,10.716]
[1746021723934,5.5443662,1756.2,1755.3,3.0]
[1746021724270,13.716,1756.6,1754.8,1.25273426]
[1746021724470,13.716,1756.6,1754.7,4.59610091]
[1746021724471,5.69704903,1755.3,1754.7,4.59610091]
[1746021724783,0.55,1756.0,1754.7,4.59610091]
[1746021724784,5.69659027,1755.5,1754.7,4.59610091]
[1746021724978,5.69865511,1754.8,1754.7,4.59610091]
[1746021725478,6.24689317,1755.4,1754.7,4.59610091]
[1746021725682,5.69859927,1754.9,1753.9,18.837]
[1746021725841,5.69851643,1754.9,1754.1,3.0]
[1746021726045,3.0,1755.6,1754.0,2.67402916]
[1746021726245,0.55,1755.7,1754.0,2.67402916]
[1746021726452,5.69632805,1755.6,1754.1,1.25273426]
[1746021726746,5.69524709,1755.9,1754.2,0.55]
[1746021726983,10.719,1756.0,1754.5,2.8233827]
[1746021727283,18.837,1756.1,1754.6,18.33269317]
[1746021727485,10.719,1756.4,1754.8,0.55]
[1746021727696,5.0099,1757.7,1755.2,0.55]
[1746021727860,5.69328133,1756.5,1755.4,0.55]
[1746021728060,5.69328133,1756.5,1754.9,0.74091406]
[1746021728061,5.69450456,1756.1,1754.9,0.74091406]